bitfinex/quotes_BTCUSD_20240918
["timestamp","ask_amount","ask_price","bid_price","bid_amount"]
[1726687869856,0.03,60638.0,60625.0,0.001644]
[1726687870084,0.06,60639.0,60636.0,0.164916]
[1726687870325,0.03,60636.0,60630.0,0.329866]
[1726687870553,0.32983,60638.0,60626.0,0.1]
[1726687870554,0.164938,60629.0,60626.0,0.1]
[1726687871019,0.389854,60633.0,60628.0,0.164939]
[1726687871020,0.16493,60632.0,60628.0,0.164939]
[1726687871259,0.16493,60632.0,60625.0,0.0348001]
[1726687871260,0.32986,60632.0,60625.0,0.0348001]
[1726687871494,0.32986,60632.0,60625.0,0.1997481]
[1726687871495,0.06,60626.0,60625.0,0.1997481]
[1726687871736,0.06,60626.0,60625.0,0.001644]
[1726687871737,0.224945,60626.0,60625.0,0.001644]
[1726687871981,1.54688781,60626.0,60625.0,0.001644]
[1726687872215,1.54688781,60626.0,60618.0,0.001644]
[1726687872216,1.214751,60619.0,60618.0,0.001644]
[1726687872448,1.64468,60619.0,60618.0,0.001644]
[1726687872679,1.314751,60619.0,60618.0,0.001644]
[1726687873146,0.555049,60600.0,60599.0,0.0027654]
[1726687873387,0.885082,60600.0,60599.0,0.0027654]
[1726687873614,1.215115,60600.0,60599.0,0.0027654]
[1726687873975,0.885082,60600.0,60599.0,0.0027654]
[1726687874551,1.215115,60600.0,60599.0,0.0027654]
[1726687874787,0.885082,60600.0,60599.0,0.0027654]
[1726687875500,0.555049,60600.0,60599.0,0.0027654]
[1726687875737,0.03,60604.0,60599.0,0.0027654]
[1726687876001,0.165012,60602.0,60599.0,0.03604744]
[1726687876249,0.329974,60611.0,60603.0,0.165007]
[1726687876486,0.329974,60611.0,60599.0,0.03604744]
[1726687876487,0.389968,60612.0,60604.0,0.165004]
[1726687876728,0.329927,60620.0,60599.0,0.36608244]
[1726687876729,0.06,60613.0,60605.0,0.0165004]
[1726687876980,0.06,60614.0,60607.0,0.164996]
[1726687877240,0.329927,60620.0,60607.0,0.164996]
[1726687877241,0.03,60611.0,60607.0,0.164996]
[1726687877501,0.03,60611.0,60605.0,0.3465004]
[1726687877502,0.165,60606.0,60605.0,0.0165004]
[1726687877732,0.165,60606.0,60599.0,0.03604744]
[1726687877733,0.165016,60600.0,60599.0,0.0027654]
[1726687877968,0.495049,60600.0,60599.0,0.0027654]
[1726687878200,0.06,60603.0,60599.0,0.0027654]
[1726687878422,0.495049,60600.0,60599.0,0.0027654]
[1726687878919,1.215115,60600.0,60599.0,0.0027654]
[1726687879149,0.90232614,60600.0,60599.0,0.0027654]
[1726687879396,1.23235914,60600.0,60599.0,0.0027654]
[1726687879632,0.40727714,60600.0,60599.0,0.0027654]
[1726687879867,0.225016,60600.0,60599.0,0.0027654]
[1726687880571,1.215115,60600.0,60599.0,0.0027654]
[1726687881062,1.23222563,60600.0,60599.0,0.0027654]
[1726687881290,1.23222415,60600.0,60599.0,0.0027654]
[1726687882681,1.66225715,60600.0,60599.0,0.0027654]
[1726687883141,1.56225715,60600.0,60599.0,0.0027654]
[1726687883610,1.56425715,60600.0,60599.0,0.0027654]
[1726687883840,2.02429015,60600.0,60599.0,0.0027654]
[1726687884099,2.02429015,60600.0,60592.0,0.001644]
[1726687884100,1.215248,60593.0,60592.0,0.001644]
[1726687884332,1.89249915,60593.0,60592.0,0.001644]
[1726687884565,1.545319,60593.0,60592.0,0.001644]
[1726687884796,1.23238633,60593.0,60592.0,0.001644]
[1726687885043,0.03,60589.0,60577.0,0.0047006]
[1726687885278,1.215532,60578.0,60577.0,0.0047006]
[1726687885756,1.215532,60578.0,60556.0,0.3349676]
[1726687885757,1.215532,60578.0,60556.0,0.0047006]
[1726687885758,0.062,60567.0,60556.0,0.0047006]
[1726687886009,0.733834,60565.0,60556.0,0.0047006]
[1726687886238,0.495391,60558.0,60556.0,0.0047006]
[1726687886469,1.33299439,60558.0,60556.0,0.0047006]
[1726687886755,1.75325539,60558.0,60556.0,0.0047006]
[1726687887027,2.2871182,60558.0,60556.0,0.0047006]
[1726687887287,2.2891182,60558.0,60556.0,0.0047006]
[1726687887544,0.90273339,60558.0,60556.0,0.0047006]
[1726687887802,0.22513,60558.0,60556.0,0.0047006]
[1726687888286,0.555391,60558.0,60556.0,0.0047006]
[1726687888531,0.03,60559.0,60556.0,0.0047006]
[1726687888768,0.08591101,60567.0,60565.0,0.165109]
[1726687888996,0.165087,60574.0,60556.0,0.0047006]
[1726687888997,0.03,60563.0,60556.0,0.0047006]
[1726687889301,0.03,60563.0,60559.0,0.165127]
[1726687889302,0.06,60563.0,60559.0,0.165127]
[1726687889539,0.06,60563.0,60560.0,0.01714696]
[1726687889771,0.06,60565.0,60557.0,0.166775]
[1726687890005,0.06,60559.0,60557.0,0.001642]
[1726687890484,0.03,60562.0,60561.0,0.330245]
[1726687890718,0.03,60562.0,60557.0,0.001642]
[1726687890959,0.03,60562.0,60559.0,0.165126]
[1726687891224,0.03,60562.0,60560.0,0.165125]
[1726687891460,0.05995,60570.0,60558.0,0.01714786]
[1726687891693,0.05995,60572.0,60569.0,0.330201]
[1726687891952,0.02995,60572.0,60571.0,0.165095]
[1726687892186,0.02995,60572.0,60559.0,0.00330202]
[1726687892187,0.05995,60574.0,60558.0,0.023]
[1726687892430,0.05995,60583.0,60561.0,0.06514]
[1726687892674,0.99073661,60586.0,60585.0,0.165057]
[1726687892976,0.05995,60592.0,60591.0,0.165041]
[1726687893204,0.02995,60593.0,60591.0,0.165039]
[1726687893441,0.02995,60593.0,60585.0,0.0165057]
[1726687893442,0.02995,60593.0,60592.0,0.330076]
[1726687893707,0.01000856,60612.0,60599.0,0.330038]
[1726687893708,0.05995,60600.0,60599.0,0.330038]
[1726687893986,0.329984,60609.0,60585.0,0.0165057]
[1726687893987,0.02995,60599.0,60598.0,0.165021]
[1726687894227,0.05995,60595.0,60585.0,0.0165057]
[1726687894491,0.224981,60595.0,60590.0,0.165043]
[1726687894757,0.224981,60595.0,60585.0,0.0165057]
[1726687894758,0.05995,60593.0,60585.0,0.0165057]
[1726687895056,0.16504,60592.0,60587.0,0.165051]
[1726687895258,0.330069,60594.0,60585.0,0.0165057]
[1726687895259,0.165054,60586.0,60585.0,0.0165057]
[1726687895626,0.05995,60587.0,60579.0,0.330143]
[1726687895629,0.02995,60590.0,60574.0,0.02630116]
[1726687895838,0.390054,60587.0,60576.0,0.1]
[1726687896064,0.390054,60587.0,60572.0,0.083]
[1726687896065,0.05995,60585.0,60572.0,0.183]
[1726687896309,0.05995,60583.0,60582.0,0.165065]
[1726687896518,0.225013,60583.0,60578.0,0.165075]
[1726687896732,0.05995,60583.0,60581.0,0.165066]
[1726687896995,0.02995,60585.0,60579.0,0.0495238]
[1726687897213,0.02995,60585.0,60573.0,0.123]
[1726687897214,0.05995,60593.0,60587.0,0.330103]
[1726687897446,0.05995,60593.0,60573.0,0.123]
[1726687897447,0.02995,60591.0,60590.0,0.165043]
[1726687897664,0.02995,60591.0,60590.0,0.49513]
[1726687897896,0.05995,60595.0,60594.0,0.165032]
[1726687898124,0.05995,60595.0,60592.0,0.330076]
[1726687898363,0.03,60606.0,60593.0,0.00330045]
[1726687898586,0.05995,60609.0,60603.0,0.495024]
[1726687898810,0.05995,60609.0,60603.0,1.155056]
[1726687899041,0.05995,60617.0,60603.0,1.31814158]
[1726687899268,0.329911,60623.0,60603.0,1.31814158]
[1726687899269,0.05995,60613.0,60603.0,1.41814158]
[1726687899550,0.05995,60610.0,60603.0,1.41814158]
[1726687899767,0.05995,60611.0,60603.0,1.08812558]
[1726687899986,0.05995,60611.0,60603.0,1.41814158]
[1726687900426,0.05995,60617.0,60603.0,1.41814158]
[1726687900640,0.05995,60617.0,60603.0,1.74815758]
[1726687900859,0.02995,60616.0,60603.0,1.80429758]
[1726687901089,0.05995,60614.0,60603.0,1.80429758]
[1726687901317,0.05995,60614.0,60603.0,1.47428158]
[1726687901557,0.05995,60614.0,60603.0,1.12126558]
[1726687901772,0.05995,60614.0,60603.0,1.08812558]
[1726687901992,0.05995,60614.0,60603.0,1.41814158]
[1726687902443,0.030822,60618.0,60617.0,0.16497]
[1726687902700,0.000822,60618.0,60617.0,0.5444032]
[1726687902945,0.000822,60618.0,60617.0,1.55547687]
[1726687903164,0.000822,60618.0,60617.0,1.89562809]
[1726687903389,0.0047006,60631.0,60630.0,0.947672]
[1726687903618,0.0047006,60631.0,60630.0,1.300681]
[1726687903840,0.0047006,60631.0,60630.0,1.60677942]
[1726687904096,0.0047006,60631.0,60630.0,2.37221123]
[1726687905053,0.0047006,60631.0,60630.0,1.44372575]
[1726687905300,0.0047006,60631.0,60630.0,1.93664842]
[1726687905525,0.0047006,60631.0,60630.0,1.60677942]
[1726687905752,0.0047006,60631.0,60630.0,1.94667653]
[1726687905975,0.0047006,60631.0,60630.0,1.61680753]
[1726687906196,0.0047006,60631.0,60630.0,1.94667653]
[1726687906419,0.0047006,60631.0,60630.0,2.38223934]
[1726687907182,0.00040697,60631.0,60630.0,2.74210834]
[1726687907423,0.00040697,60631.0,60630.0,2.41423934]
[1726687907659,0.00040697,60631.0,60630.0,2.38423934]
[1726687908161,0.00040697,60631.0,60630.0,1.85617667]
[1726687908419,0.00040697,60631.0,60630.0,0.01002811]
[1726687908672,0.00040697,60631.0,60605.0,0.00329881]
[1726687908908,0.00040697,60631.0,60604.0,0.03]
[1726687908909,0.02995,60626.0,60608.0,0.03]
[1726687909151,0.02995,60626.0,60610.0,0.03314]
[1726687909396,0.02995,60626.0,60611.0,0.21881304]
[1726687909883,0.02995,60626.0,60613.0,0.03314]
[1726687910139,0.05995,60626.0,60612.0,0.1]
[1726687910420,0.05995,60620.0,60611.0,0.02261937]
[1726687910673,0.05995,60614.0,60601.0,0.00977929]
[1726687910890,0.05995,60614.0,60601.0,0.16305367]
[1726687911796,0.05995,60614.0,60602.0,0.123]
[1726687912022,0.05995,60614.0,60609.0,0.164989]
[1726687912354,0.164973,60616.0,60604.0,0.165005]
[1726687912355,0.164987,60611.0,60604.0,0.165005]
[1726687912582,0.329978,60611.0,60603.0,0.02860537]
[1726687912862,0.329978,60611.0,60593.0,0.330065]
[1726687912863,0.05995,60605.0,60581.0,0.0843]
[1726687913109,0.05995,60600.0,60577.0,0.00429363]
[1726687913367,0.165048,60589.0,60582.0,0.165064]
[1726687913598,0.330082,60591.0,60583.0,0.06582697]
[1726687913599,0.330083,60591.0,60583.0,0.06582697]
[1726687913828,0.05995,60591.0,60583.0,0.06582697]
[1726687914086,0.05995,60591.0,60577.0,0.00429363]
[1726687914087,0.02995,60582.0,60577.0,0.00429363]
[1726687914327,0.02995,60582.0,60578.0,0.165076]
[1726687914562,0.03,60588.0,60578.0,0.330152]
[1726687914832,0.02995,60587.0,60579.0,0.06646116]
[1726687915066,0.225002,60587.0,60578.0,0.330149]
[1726687915299,0.165055,60586.0,60581.0,0.165066]
[1726687915525,0.05995,60587.0,60584.0,0.165058]
[1726687915769,0.05995,60582.0,60572.0,0.00510043]
[1726687916024,0.05995,60580.0,60572.0,0.00510043]
[1726687916268,0.16509,60573.0,60572.0,0.00510043]
[1726687916764,0.165085,60575.0,60572.0,0.00510043]
[1726687917001,0.390111,60577.0,60572.0,0.00510043]
[1726687917002,0.16509,60573.0,60572.0,0.03863097]
[1726687917475,0.49527,60573.0,60572.0,0.00510043]
[1726687917708,0.82545,60573.0,60572.0,0.00510043]
[1726687917961,0.8854,60573.0,60572.0,0.00510043]
[1726687918203,0.90309913,60573.0,60572.0,0.00510043]
[1726687918439,0.06095,60573.0,60572.0,0.01910043]
[1726687918718,0.001,60573.0,60572.0,0.01910043]
[1726687918951,0.001,60573.0,60572.0,0.21912227]
[1726687919184,0.02995,60575.0,60574.0,0.165087]
[1726687919656,0.02995,60575.0,60572.0,0.37021527]
[1726687919657,0.02995,60575.0,60572.0,0.53530527]
[1726687919942,0.05995,60576.0,60572.0,0.04003027]
[1726687920169,0.390084,60582.0,60572.0,0.00510043]
[1726687920395,0.002,60599.0,60572.0,0.00510043]
[1726687920396,0.05995,60575.0,60572.0,0.00510043]
[1726687920882,0.001,60573.0,60572.0,0.01910043]
[1726687921118,0.02995,60573.0,60572.0,0.17019243]
[1726687921345,0.05995,60573.0,60572.0,0.06913857]
[1726687921586,0.02995,60573.0,60572.0,0.06913857]
[1726687921859,0.05995,60582.0,60572.0,0.00510043]
[1726687922100,0.49527,60573.0,60572.0,0.01910043]
[1726687922331,0.05995,60573.0,60572.0,0.00510043]
[1726687922794,0.55622,60573.0,60572.0,0.01910043]
[1726687923038,0.9040897,60573.0,60572.0,0.01910043]
[1726687923272,1.25125775,60573.0,60572.0,0.01910043]
[1726687923503,1.2342697,60573.0,60572.0,0.01910043]
[1726687923749,0.5673057,60573.0,60572.0,0.01910043]
[1726687924257,0.5673057,60573.0,60572.0,0.00510043]
[1726687924258,0.878796,60573.0,60572.0,0.00510043]
[1726687924496,0.878796,60573.0,60563.0,0.001644]
[1726687924497,0.548689,60564.0,60563.0,0.001644]
[1726687924733,1.24385507,60564.0,60563.0,0.001644]
[1726687924973,1.2721166,60564.0,60563.0,0.001644]
[1726687925216,1.2721166,60564.0,60543.0,0.001642]
[1726687925217,0.165169,60544.0,60543.0,0.001642]
[1726687925460,0.348528,60539.0,60523.0,0.00019889]
[1726687925706,1.77791185,60539.0,60523.0,0.00019889]
[1726687925960,2.10827685,60539.0,60523.0,0.00019889]
[1726687926225,1.209872,60526.0,60523.0,0.00019889]
[1726687926462,1.22753432,60526.0,60523.0,0.00019889]
[1726687926692,1.209872,60526.0,60523.0,0.00019889]
[1726687926933,0.90536401,60526.0,60523.0,0.00019889]
[1726687927400,0.879436,60526.0,60523.0,0.00019889]
[1726687927659,0.218564,60526.0,60523.0,0.00019889]
[1726687927882,0.053346,60526.0,60523.0,0.00019889]
[1726687928139,0.053346,60526.0,60525.0,0.02620513]
[1726687928402,0.218564,60526.0,60525.0,0.02220513]
[1726687928645,0.55,60526.0,60525.0,0.02620513]
[1726687928873,0.55,60526.0,60525.0,0.0051474]
[1726687928874,0.549,60526.0,60525.0,0.0051474]
[1726687929123,0.04002537,60541.0,60525.0,0.0051474]
[1726687929124,0.053346,60528.0,60525.0,0.0051474]
[1726687929358,0.549,60526.0,60525.0,0.0051474]
[1726687929831,0.09,60539.0,60525.0,0.0051474]
[1726687929832,0.053346,60531.0,60525.0,0.0051474]
[1726687930110,0.053346,60530.0,60527.0,0.165213]
[1726687930346,0.053346,60530.0,60527.0,0.05010093]
[1726687930570,0.330381,60537.0,60525.0,0.0051474]
[1726687930571,0.023346,60526.0,60525.0,0.0051474]
[1726687930800,0.053346,60526.0,60525.0,0.0051474]
[1726687931275,0.549,60526.0,60525.0,0.0051474]
[1726687931511,1.209872,60526.0,60525.0,0.0051474]
[1726687932466,1.209872,60526.0,60512.0,0.0032332]
[1726687932467,1.210064,60516.0,60512.0,0.0032332]
[1726687932702,1.74562681,60516.0,60512.0,0.0032332]
[1726687933189,0.879573,60516.0,60512.0,0.0032332]
[1726687933655,0.549082,60516.0,60512.0,0.0032332]
[1726687933880,0.053346,60516.0,60512.0,0.0032332]
[1726687934145,0.053346,60525.0,60512.0,0.0032332]
[1726687934382,0.218591,60516.0,60512.0,0.0032332]
[1726687934863,0.549082,60516.0,60512.0,0.0032332]
[1726687935694,0.001,60516.0,60515.0,0.006644]
[1726687935936,0.001,60516.0,60515.0,0.171892]
[1726687936176,0.024346,60516.0,60515.0,0.52041412]
[1726687936434,0.001,60516.0,60515.0,0.02467012]
[1726687936659,0.001,60516.0,60515.0,0.52041412]
[1726687936888,0.001,60516.0,60515.0,0.02467012]
[1726687937121,0.879573,60516.0,60515.0,0.001644]
[1726687937351,0.879573,60516.0,60515.0,0.006644]
[1726687937352,0.880573,60516.0,60515.0,0.006644]
[1726687937585,0.880573,60516.0,60515.0,0.001644]
[1726687937586,0.879573,60516.0,60515.0,0.001644]
[1726687938094,0.879573,60516.0,60515.0,0.006644]
[1726687938095,1.541555,60516.0,60515.0,0.006644]
[1726687938322,1.81071239,60516.0,60515.0,0.001644]
[1726687938563,2.36008286,60516.0,60515.0,0.006644]
[1726687939010,1.75568514,60516.0,60515.0,0.001644]
[1726687939255,1.210064,60516.0,60515.0,0.001644]
[1726687939759,0.879573,60516.0,60515.0,0.001644]
[1726687940010,0.053346,60516.0,60515.0,0.001644]
[1726687940249,0.549082,60516.0,60515.0,0.001644]
[1726687940481,0.549082,60516.0,60515.0,0.166892]
[1726687940482,0.03,60516.0,60515.0,0.166892]
[1726687940726,0.023346,60519.0,60515.0,0.01917012]
[1726687940971,0.053346,60522.0,60515.0,0.006644]
[1726687941202,0.4688,60531.0,60515.0,0.006644]
[1726687941203,0.023346,60527.0,60526.0,0.165218]
[1726687941432,0.03,60527.0,60522.0,0.165228]
[1726687941718,0.053346,60523.0,60522.0,0.165229]
[1726687941958,0.053346,60523.0,60522.0,0.495687]
[1726687942190,0.053346,60523.0,60515.0,0.001644]
[1726687942191,0.053346,60523.0,60517.0,0.330483]
[1726687942426,0.053346,60523.0,60522.0,0.165229]
[1726687942649,0.053346,60523.0,60522.0,0.214799]
[1726687942889,0.053346,60523.0,60522.0,0.219799]
[1726687943086,0.023346,60523.0,60522.0,0.550257]
[1726687943361,0.053346,60523.0,60522.0,0.005]
[1726687943594,0.89730765,60523.0,60522.0,0.005]
[1726687943821,0.59538907,60523.0,60522.0,0.005]
[1726687944064,0.56685565,60523.0,60522.0,0.005]
[1726687944332,0.856227,60516.0,60515.0,0.001644]
[1726687944563,1.81519879,60516.0,60515.0,0.001644]
[1726687944786,1.27350779,60516.0,60515.0,0.001644]
[1726687945751,0.61252579,60516.0,60515.0,0.001644]
[1726687945983,0.09971584,60516.0,60515.0,0.001644]
[1726687946227,0.09975507,60516.0,60515.0,0.001644]
[1726687946461,0.5840373,60516.0,60515.0,0.001644]
[1726687946692,0.91690711,60516.0,60515.0,0.001644]
[1726687946914,0.94309234,60516.0,60515.0,0.001644]
[1726687947138,0.61260134,60516.0,60515.0,0.001644]
[1726687947597,0.94309234,60516.0,60515.0,0.006644]
[1726687947829,1.29951364,60516.0,60515.0,0.001644]
[1726687948307,1.30051364,60516.0,60515.0,0.009644]
[1726687948543,0.97002264,60516.0,60515.0,0.009644]
[1726687948793,0.28569464,60516.0,60515.0,0.009644]
[1726687949027,0.28569464,60516.0,60515.0,0.001644]
[1726687949028,0.96902264,60516.0,60515.0,0.001644]
[1726687949219,0.94309234,60516.0,60515.0,0.001644]
[1726687949585,0.94318819,60516.0,60515.0,0.001644]
[1726687949804,1.27467919,60516.0,60515.0,0.007644]
[1726687950032,1.27667919,60516.0,60515.0,0.007644]
[1726687950248,1.87025577,60516.0,60515.0,0.007644]
[1726687950469,1.79717019,60516.0,60515.0,0.007644]
[1726687950797,1.79717019,60516.0,60515.0,0.00733801]
[1726687951020,0.218627,60503.0,60491.0,0.0001]
[1726687951271,1.60449019,60503.0,60491.0,0.0001]
[1726687951517,1.709491,60503.0,60502.0,0.0050474]
[1726687951777,1.899491,60503.0,60502.0,0.0049474]
[1726687952009,2.2559919,60503.0,60502.0,0.0049474]
[1726687952271,2.68702429,60503.0,60502.0,0.0189474]
[1726687952510,2.68702429,60503.0,60491.0,0.0001]
[1726687952511,1.210523,60492.0,60491.0,0.0001]
[1726687952735,1.2740303,60492.0,60491.0,0.0001]
[1726687953208,0.1168533,60492.0,60491.0,0.165413]
[1726687953455,0.4474753,60492.0,60491.0,0.0001]
[1726687953686,0.2821643,60492.0,60491.0,0.0001]
[1726687953913,0.94578711,60492.0,60491.0,0.0001]
[1726687954159,1.3040303,60492.0,60491.0,0.0001]
[1726687954399,1.74159311,60492.0,60491.0,0.0001]
[1726687954620,1.73753537,60492.0,60491.0,0.0001]
[1726687954857,0.96935056,60492.0,60491.0,0.0001]
[1726687955085,0.11673158,60492.0,60491.0,0.0001]
[1726687955336,0.06338558,60492.0,60491.0,0.165413]
[1726687955567,0.330531,60509.0,60491.0,0.165413]
[1726687955568,0.023346,60501.0,60500.0,0.330578]
[1726687955814,0.023346,60501.0,60500.0,0.165289]
[1726687956051,0.053346,60501.0,60492.0,0.1]
[1726687956285,0.053346,60501.0,60494.0,0.1]
[1726687956511,0.053346,60501.0,60495.0,0.330603]
[1726687956755,0.053346,60506.0,60496.0,0.00330544]
[1726687957038,0.053346,60502.0,60494.0,0.1]
[1726687957284,0.023346,60504.0,60503.0,0.165281]
[1726687957509,0.001646,60523.0,60514.0,0.165251]
[1726687957510,0.053346,60515.0,60514.0,0.165251]
[1726687957733,0.053346,60515.0,60514.0,0.495753]
[1726687957976,0.02593191,60516.0,60515.0,0.165248]
[1726687958215,0.07927791,60516.0,60515.0,0.495744]
[1726687958459,0.07927791,60516.0,60503.0,0.01983298]
[1726687958460,0.07927791,60516.0,60510.0,0.330523]
[1726687958692,0.053346,60516.0,60514.0,0.165249]
[1726687958950,0.053346,60516.0,60511.0,0.0330523]
[1726687959196,0.166873,60523.0,60503.0,0.4470871]
[1726687959197,0.023346,60508.0,60507.0,0.16527]
[1726687959429,0.023346,60515.0,60514.0,0.165251]
[1726687959665,0.024346,60516.0,60515.0,0.495744]
[1726687959900,0.024346,60516.0,60515.0,0.5453184]
[1726687960139,0.024346,60516.0,60515.0,0.2148224]
[1726687960615,0.001,60516.0,60515.0,1.2063104]
[1726687960893,0.001646,60523.0,60522.0,0.826145]
[1726687961126,0.001646,60523.0,60522.0,1.2392175]
[1726687961591,0.001646,60523.0,60522.0,0.9087595]
[1726687961823,0.001646,60523.0,60522.0,1.3622175]
[1726687962797,0.001646,60523.0,60522.0,2.35443198]
[1726687963038,0.24915828,60546.0,60545.0,0.495498]
[1726687963297,0.24915828,60546.0,60545.0,0.8753798]
[1726687963540,0.0012879,60546.0,60545.0,1.90369747]
[1726687963771,0.0012879,60546.0,60545.0,1.93683747]
[1726687964251,0.0012879,60546.0,60545.0,2.37240028]
[1726687964718,4e-05,60550.0,60549.0,1.642535]
[1726687964981,0.0058491,60573.0,60572.0,0.495277]
[1726687965218,0.0058491,60573.0,60572.0,1.155647]
[1726687965446,0.0058491,60573.0,60572.0,1.80502567]
[1726687965671,0.0058491,60573.0,60572.0,1.88302567]
[1726687965672,0.0057491,60573.0,60572.0,1.88302567]
[1726687965954,0.0057491,60573.0,60572.0,1.356647]
[1726687966206,0.0057491,60573.0,60572.0,1.06383565]
[1726687966936,0.0057491,60573.0,60572.0,0.73365065]
[1726687967175,0.0057491,60573.0,60572.0,0.22546565]
[1726687967400,0.0057491,60573.0,60572.0,0.495277]
[1726687967633,0.0057491,60573.0,60572.0,0.618277]
[1726687967870,0.0067491,60573.0,60572.0,0.008]
[1726687968094,0.0057491,60573.0,60572.0,1.25003348]
[1726687968314,0.0057491,60573.0,60572.0,1.70855196]
[1726687968595,0.0067491,60573.0,60572.0,2.40692196]
[1726687968825,4e-05,60600.0,60598.0,0.330043]
[1726687969072,4e-05,60600.0,60598.0,0.9581113]
[1726687969317,4e-05,60600.0,60598.0,1.14416497]
[1726687969566,4e-05,60600.0,60598.0,1.83939097]
[1726687969800,0.000822,60614.0,60610.0,0.95352981]
[1726687970031,0.000822,60614.0,60610.0,1.74468598]
[1726687970493,0.000822,60614.0,60610.0,1.90773965]
[1726687971209,0.000822,60614.0,60610.0,1.41470798]
[1726687971433,0.000822,60614.0,60610.0,0.97914517]
[1726687972422,0.000822,60614.0,60610.0,1.57776165]
[1726687972658,0.000822,60614.0,60610.0,0.13120017]
[1726687972887,0.000822,60614.0,60610.0,0.62616717]
[1726687973108,0.000822,60614.0,60610.0,0.13120017]
[1726687973359,0.000822,60614.0,60610.0,0.03120017]
[1726687973360,0.054992,60611.0,60610.0,0.03120017]
[1726687973597,0.054992,60611.0,60601.0,0.330023]
[1726687973827,0.053346,60601.0,60598.0,0.0330043]
[1726687974064,0.053346,60599.0,60592.0,0.165036]
[1726687974294,0.330022,60602.0,60589.0,0.165045]
[1726687974295,0.218371,60597.0,60589.0,0.165045]
[1726687974528,0.218374,60596.0,60590.0,0.0495157]
[1726687974754,0.023346,60591.0,60590.0,0.0495157]
[1726687974980,0.023346,60591.0,60590.0,0.165043]
[1726687975203,0.023346,60591.0,60586.0,0.330105]
[1726687975204,0.023346,60591.0,60588.0,0.165047]
[1726687975454,0.053346,60595.0,60587.0,0.43556281]
[1726687975682,0.053346,60595.0,60592.0,0.165036]
[1726687975904,0.053346,60595.0,60592.0,0.165037]
[1726687976173,0.053346,60591.0,60575.0,0.43556281]
[1726687976399,0.001,60601.0,60592.0,0.330076]
[1726687976634,0.001,60601.0,60588.0,0.43556281]
[1726687976635,0.053346,60594.0,60593.0,0.07656388]
[1726687976863,0.053346,60594.0,60593.0,0.165035]
[1726687977317,0.053346,60594.0,60588.0,0.330093]
[1726687977318,0.02589334,60597.0,60588.0,0.43556281]
[1726687977561,0.053346,60596.0,60592.0,0.008]
[1726687977798,0.053346,60593.0,60592.0,0.04435628]
[1726687978036,0.00237881,60604.0,60592.0,0.04435628]
[1726687978037,0.053346,60598.0,60592.0,0.330076]
[1726687978227,0.053346,60598.0,60588.0,0.023]
[1726687978491,0.053346,60598.0,60592.0,0.165037]
[1726687978712,0.218368,60598.0,60593.0,0.2498549]
[1726687978935,0.053346,60598.0,60596.0,0.165024]
[1726687979424,0.023346,60599.0,60598.0,0.165021]
[1726687979674,0.053346,60604.0,60603.0,0.165008]
[1726687979926,0.001646,60611.0,60605.0,0.165002]
[1726687979927,0.053346,60606.0,60605.0,0.165002]
[1726687980399,0.001646,60611.0,60593.0,0.430068]
[1726687980400,0.053346,60600.0,60593.0,0.430068]
[1726687980646,0.330011,60604.0,60596.0,0.175027]
[1726687980647,0.023346,60597.0,60596.0,0.175027]
[1726687980879,0.023346,60597.0,60596.0,0.165027]
[1726687981119,0.053346,60600.0,60599.0,0.165019]
[1726687981422,0.023346,60598.0,60594.0,0.0430068]
[1726687981525,0.001,60606.0,60594.0,0.48186991]
[1726687981752,0.001,60606.0,60605.0,0.495007]
[1726687981986,0.023346,60601.0,60595.0,0.1]
[1726687982222,0.023346,60601.0,60588.0,0.330094]
[1726687982223,0.023346,60597.0,60596.0,0.01430068]
[1726687982447,0.053346,60593.0,60583.0,0.33012]
[1726687982702,0.053346,60593.0,60580.0,0.424938]
[1726687982703,0.165045,60590.0,60584.0,0.330116]
[1726687982943,0.001,60597.0,60586.0,0.43556281]
[1726687983188,0.99002549,60593.0,60587.0,0.39802339]
[1726687983424,0.001646,60611.0,60596.0,0.009]
[1726687983425,0.001,60597.0,60596.0,0.009]
[1726687983646,0.001,60597.0,60596.0,0.834135]
[1726687983885,0.01267337,60600.0,60599.0,0.495057]
[1726687984122,0.329994,60607.0,60606.0,0.165]
[1726687984123,0.01267337,60607.0,60606.0,0.165]
[1726687984391,0.01267337,60607.0,60606.0,0.495]
[1726687984629,0.001646,60611.0,60595.0,0.00995085]
[1726687984630,0.001646,60611.0,60610.0,0.824945]
[1726687984876,0.01431937,60611.0,60608.0,0.494978]
[1726687985110,0.01431937,60611.0,60605.0,0.330003]
[1726687985111,0.001646,60611.0,60610.0,0.947945]
[1726687985337,0.001646,60611.0,60610.0,1.44100858]
[1726687985573,0.001646,60611.0,60610.0,1.08803058]
[1726687986026,0.001646,60611.0,60610.0,1.41800858]
[1726687986249,0.001646,60611.0,60610.0,1.08803058]
[1726687986497,0.001646,60611.0,60610.0,2.03962506]
[1726687987183,0.001646,60611.0,60610.0,2.36960306]
[1726687987422,0.001646,60611.0,60610.0,2.06962506]
[1726687987652,0.001646,60611.0,60610.0,2.42960306]
[1726687987887,0.001646,60611.0,60610.0,2.04942918]
[1726687988122,0.001646,60611.0,60610.0,2.09656918]
[1726687988363,0.000822,60614.0,60613.0,1.56215563]
[1726687988613,0.000822,60614.0,60613.0,1.44095258]
[1726687988897,0.000822,60614.0,60613.0,1.41795258]
[1726687989198,0.000822,60614.0,60613.0,1.93396825]
[1726687989484,0.000822,60614.0,60613.0,1.44095258]
[1726687989722,0.000822,60614.0,60613.0,1.08799058]
[1726687989962,0.000822,60614.0,60613.0,0.65802858]
[1726687990232,0.000822,60614.0,60613.0,0.164981]
[1726687990491,0.000822,60614.0,60602.0,0.53436281]
[1726687990492,0.01367337,60611.0,60610.0,0.014]
[1726687990781,1.20591085,60611.0,60610.0,0.014]
[1726687991008,1.23436111,60611.0,60610.0,0.014]
[1726687991276,0.01267337,60597.0,60594.0,0.165032]
[1726687991642,0.01778141,60596.0,60595.0,0.2145416]